bitfinex/quotes_BTCUSD_20240821
["timestamp","ask_amount","ask_price","bid_price","bid_amount"]
[1724249472083,0.409,60233.0,60210.0,0.00332141]
[1724249472285,0.332092,60225.0,60211.0,0.16400298]
[1724249472486,0.49229154,60232.0,60211.0,0.16400298]
[1724249472699,0.166041,60226.0,60215.0,0.16607]
[1724249472909,0.409,60233.0,60216.0,0.16732418]
[1724249473098,0.166029,60231.0,60220.0,0.166057]
[1724249473317,0.166025,60232.0,60221.0,0.33005498]
[1724249473643,0.166027,60231.0,60221.0,0.33005498]
[1724249473851,0.409,60233.0,60221.0,0.33005498]
[1724249473852,0.575023,60233.0,60221.0,0.33005498]
[1724249474050,0.33205,60232.0,60221.0,0.16400298]
[1724249474250,0.436,60233.0,60221.0,0.16400298]
[1724249474670,0.014,60233.0,60222.0,0.19482071]
[1724249474875,0.014,60233.0,60232.0,0.498073]
[1724249475079,0.027,60233.0,60232.0,0.99412498]
[1724249475399,0.009,60239.0,60238.0,0.498024]
[1724249475576,0.009,60239.0,60238.0,1.19034298]
[1724249475774,0.009,60239.0,60232.0,0.3803]
[1724249476027,0.009,60239.0,60233.0,0.16732314]
[1724249476251,0.009,60239.0,60233.0,0.16400298]
[1724249476665,0.009,60239.0,60238.0,0.005]
[1724249476666,0.01,60239.0,60238.0,0.005]
[1724249476866,0.01,60239.0,60238.0,0.16400298]
[1724249476867,0.009,60239.0,60238.0,0.16400298]
[1724249477341,0.009,60239.0,60225.0,0.737983]
[1724249477342,0.02,60239.0,60225.0,0.737983]
[1724249477647,0.02,60239.0,60227.0,0.16400298]
[1724249477648,0.009,60239.0,60227.0,0.16400298]
[1724249477818,0.009,60239.0,60238.0,0.903924]
[1724249478041,0.009,60239.0,60238.0,1.06792698]
[1724249478249,0.009,60239.0,60226.0,0.3377]
[1724249478250,0.009,60239.0,60226.0,0.332078]
[1724249478457,0.009,60239.0,60227.0,0.16400298]
[1724249478657,0.175006,60239.0,60227.0,0.16400298]
[1724249478874,0.175006,60239.0,60229.0,0.166031]
[1724249479095,0.175006,60239.0,60230.0,0.16400298]
[1724249479299,0.009,60239.0,60238.0,0.001]
[1724249479472,0.009,60239.0,60234.0,0.166017]
[1724249479730,0.009,60239.0,60234.0,0.16400298]
[1724249479862,0.009,60239.0,60234.0,0.33001998]
[1724249480059,0.009,60239.0,60234.0,0.16400298]
[1724249480257,0.009,60239.0,60235.0,0.33001798]
[1724249480468,0.009,60239.0,60238.0,0.498024]
[1724249480668,0.009,60239.0,60238.0,1.38364298]
[1724249480939,0.009,60239.0,60238.0,1.90795898]
[1724249481151,0.009,60239.0,60238.0,1.24492698]
[1724249481489,0.009,60239.0,60238.0,0.71961098]
[1724249481690,0.009,60239.0,60232.0,0.332046]
[1724249481890,0.011,60239.0,60237.0,0.166009]
[1724249482101,0.011,60239.0,60231.0,0.1949]
[1724249482102,0.011,60239.0,60238.0,0.33001098]
[1724249482333,0.011,60239.0,60229.0,0.398]
[1724249482541,0.011,60239.0,60230.0,0.16400298]
[1724249482542,0.166009,60238.0,60230.0,0.16400298]
[1724249482816,0.011,60239.0,60231.0,0.166027]
[1724249482991,0.009,60239.0,60232.0,0.16400298]
[1724249483375,0.009,60239.0,60238.0,0.83004]
[1724249483579,0.009,60239.0,60238.0,1.32605898]
[1724249483804,0.009,60239.0,60238.0,0.66202698]
[1724249484041,0.009,60239.0,60238.0,0.16400298]
[1724249484042,0.013,60239.0,60238.0,0.16400298]
[1724249484367,0.009,60239.0,60238.0,0.16400298]
[1724249484790,0.009,60239.0,60238.0,0.16900298]
[1724249484991,0.009,60239.0,60238.0,0.005]
[1724249485141,0.01,60239.0,60238.0,0.17100298]
[1724249485349,0.01,60239.0,60238.0,0.007]
[1724249485553,0.01,60239.0,60229.0,0.332063]
[1724249485554,0.011,60239.0,60231.0,0.332052]
[1724249485843,0.011,60239.0,60218.0,0.332123]
[1724249485844,0.33204,60234.0,60222.0,0.4105042]
[1724249486074,0.935216,60238.0,60223.0,0.16400298]
[1724249486292,0.0947038,60237.0,60223.0,0.16400298]
[1724249486508,0.0947038,60237.0,60222.0,0.0009042]
[1724249486509,0.498148,60223.0,60222.0,0.0009042]
[1724249486718,0.166049,60223.0,60222.0,0.0009042]
[1724249486925,0.3891,60224.0,60222.0,0.0009042]
[1724249487136,0.332068,60229.0,60222.0,0.0009042]
[1724249487358,0.3891,60230.0,60222.0,0.0009042]
[1724249487567,0.0724153,60229.0,60222.0,0.0019042]
[1724249487790,0.3891,60230.0,60222.0,0.0019042]
[1724249487999,0.166037,60228.0,60222.0,0.0009042]
[1724249488203,0.166038,60227.0,60222.0,0.0009042]
[1724249488418,0.009,60224.0,60222.0,0.16590718]
[1724249488674,0.009,60224.0,60223.0,0.16400298]
[1724249488889,0.009,60224.0,60223.0,1.06175098]
[1724249489099,0.009,60224.0,60223.0,0.72965198]
[1724249489535,0.009,60224.0,60223.0,1.39384998]
[1724249489746,0.009,60224.0,60223.0,1.25075098]
[1724249489983,0.015,60224.0,60223.0,1.25075098]
[1724249490401,0.006,60224.0,60223.0,1.25075098]
[1724249490610,0.006,60224.0,60223.0,1.58284998]
[1724249490788,0.006,60224.0,60223.0,1.25075098]
[1724249491277,0.000824,60238.0,60237.0,0.830052]
[1724249491497,0.000822,60243.0,60242.0,0.497991]
[1724249491729,0.000822,60243.0,60242.0,2.05787598]
[1724249491943,0.000822,60243.0,60242.0,1.72488198]
[1724249492152,0.000822,60243.0,60242.0,1.72588198]
[1724249492788,0.000822,60243.0,60242.0,1.72488198]
[1724249493205,0.000822,60243.0,60242.0,0.16400298]
[1724249493424,0.000822,60243.0,60242.0,0.66199398]
[1724249494279,0.000822,60243.0,60242.0,0.99398798]
[1724249494493,0.000822,60243.0,60242.0,1.00798798]
[1724249494920,0.001822,60243.0,60242.0,1.00798798]
[1724249495170,0.001822,60243.0,60242.0,0.67599398]
[1724249495378,0.001822,60243.0,60242.0,0.025]
[1724249495808,0.001822,60243.0,60242.0,0.190997]
[1724249496016,0.001822,60243.0,60242.0,0.35499998]
[1724249496228,0.001822,60243.0,60242.0,0.34399998]
[1724249496436,0.001822,60243.0,60242.0,0.67599398]
[1724249496853,0.001822,60243.0,60242.0,0.34399998]
[1724249497271,0.001822,60243.0,60242.0,0.67599398]
[1724249497483,0.000822,60243.0,60242.0,0.66299398]
[1724249497701,0.000822,60243.0,60242.0,0.001]
[1724249497919,0.000822,60243.0,60242.0,0.004]
[1724249498138,0.181322,60243.0,60226.0,0.332081]
[1724249498356,0.181322,60243.0,60242.0,0.165997]
[1724249498357,0.000822,60243.0,60242.0,0.165997]
[1724249498571,0.000822,60243.0,60242.0,0.99798798]
[1724249499008,0.000822,60243.0,60242.0,0.99398798]
[1724249499215,0.004822,60243.0,60242.0,0.99398798]
[1724249499444,0.008822,60243.0,60242.0,0.99398798]
[1724249499650,0.63638654,60259.0,60249.0,0.165977]
[1724249499863,0.57870298,60258.0,60241.0,0.331997]
[1724249500077,0.165959,60256.0,60241.0,0.16400298]
[1724249500301,0.165961,60255.0,60245.0,0.165988]
[1724249500510,0.331913,60257.0,60241.0,0.16400298]
[1724249500511,0.165967,60253.0,60241.0,0.16400298]
[1724249500740,0.331922,60256.0,60241.0,0.16400298]
[1724249500953,0.4147,60258.0,60243.0,0.165993]
[1724249500954,0.165969,60253.0,60243.0,0.165993]
[1724249501165,0.004,60243.0,60242.0,0.165997]
[1724249501371,0.004,60243.0,60242.0,0.497991]
[1724249501609,0.004,60243.0,60242.0,1.161979]
[1724249501815,0.000824,60243.0,60242.0,0.497991]
[1724249502018,0.000824,60243.0,60242.0,0.829985]
[1724249502224,0.000824,60243.0,60242.0,0.99398798]
[1724249502649,0.000824,60243.0,60233.0,0.332038]
[1724249502650,0.4029,60242.0,60213.0,0.04854825]
[1724249502874,0.4029,60242.0,60226.0,0.03]
[1724249503095,0.000824,60243.0,60229.0,0.16400298]
[1724249503343,0.49229154,60241.0,60229.0,0.16400298]
[1724249503550,0.49229154,60241.0,60226.0,0.03]
[1724249503551,0.405,60238.0,60230.0,0.01092418]
[1724249503972,0.405,60238.0,60230.0,0.16400298]
[1724249504173,0.405,60238.0,60220.0,0.3775]
[1724249504376,0.405,60238.0,60210.0,0.03]
[1724249504377,0.166024,60232.0,60231.0,0.01091178]
[1724249504583,0.16603,60230.0,60213.0,0.166076]
[1724249504802,0.405,60238.0,60213.0,0.166076]
[1724249504803,0.405,60238.0,60223.0,0.16400298]
[1724249505011,0.166017,60235.0,60223.0,0.16400298]
[1724249505212,0.405,60238.0,60223.0,0.16400298]
[1724249505213,0.405,60238.0,60224.0,0.01099859]
[1724249505419,0.405,60238.0,60225.0,0.16400298]
[1724249505420,0.429,60238.0,60225.0,0.16400298]
[1724249505652,0.166013,60237.0,60225.0,0.16400298]
[1724249505864,0.417,60238.0,60226.0,0.16400298]
[1724249506068,0.417,60238.0,60226.0,0.01097379]
[1724249506069,0.419,60238.0,60226.0,0.01097379]
[1724249506273,0.16602,60234.0,60226.0,0.01097379]
[1724249506481,0.014,60235.0,60222.0,0.0009042]
[1724249506793,0.180016,60235.0,60223.0,0.16400298]
[1724249506962,0.014,60235.0,60223.0,0.3333725]
[1724249507190,0.014,60235.0,60224.0,0.01099859]
[1724249507399,0.014,60235.0,60228.0,0.332068]
[1724249507610,0.49229154,60242.0,60229.0,0.16732315]
[1724249507817,0.59797309,60242.0,60229.0,0.01093659]
[1724249508023,0.011,60238.0,60229.0,0.01093659]
[1724249508252,0.166014,60236.0,60226.0,0.001]
[1724249508471,0.344017,60238.0,60227.0,0.16400298]
[1724249508677,0.01,60235.0,60228.0,0.001]
[1724249508885,0.510027,60238.0,60228.0,0.16400298]
[1724249508886,0.166012,60237.0,60228.0,0.16400298]
[1724249509098,0.166013,60236.0,60228.0,0.17495197]
[1724249509317,0.39398386,60238.0,60229.0,0.002]
[1724249509318,0.011,60238.0,60229.0,0.002]
[1724249509533,0.012,60242.0,60229.0,0.01193659]
[1724249509534,0.166022,60233.0,60229.0,0.01193659]
[1724249509750,0.166015,60236.0,60229.0,0.01193659]
[1724249509956,0.166019,60234.0,60229.0,0.01193659]
[1724249510157,0.173016,60235.0,60229.0,0.001]
[1724249510364,0.16602,60234.0,60230.0,0.01092418]
[1724249510581,0.007,60235.0,60228.0,0.16500298]
[1724249510819,0.007,60235.0,60231.0,0.01091178]
[1724249511042,0.007,60235.0,60228.0,0.16500298]
[1724249511043,0.007,60235.0,60228.0,0.16600298]
[1724249511247,0.011,60237.0,60229.0,0.16400298]
[1724249511450,0.166003,60240.0,60232.0,0.01089938]
[1724249511656,0.49311554,60243.0,60233.0,0.16400298]
[1724249511861,0.009,60235.0,60233.0,0.16400298]
[1724249512273,0.011,60238.0,60237.0,0.498031]
[1724249512487,0.011,60238.0,60237.0,0.16400298]
[1724249512702,0.000824,60243.0,60237.0,0.16400298]
[1724249512919,0.332816,60243.0,60237.0,0.16400298]
[1724249513137,0.332816,60243.0,60231.0,0.401]
[1724249513138,0.000824,60243.0,60238.0,0.16400298]
[1724249514707,1e-08,60260.0,60259.0,1.41965]
[1724249514939,1e-08,60260.0,60259.0,1.91555298]
[1724249515564,1e-08,60260.0,60259.0,0.16400298]
[1724249515803,1e-08,60260.0,60252.0,0.401]
[1724249516011,1e-08,60260.0,60257.0,0.002]
[1724249516012,0.00900001,60260.0,60257.0,0.002]
[1724249516232,0.165953,60258.0,60257.0,0.002]
[1724249516443,0.497859,60258.0,60257.0,0.002]
[1724249516651,0.829765,60258.0,60257.0,0.002]
[1724249516850,1.25171768,60258.0,60257.0,0.002]
[1724249517098,1.58362368,60258.0,60257.0,0.002]
[1724249517310,0.165981,60248.0,60238.0,0.166008]
[1724249517517,0.165988,60246.0,60239.0,0.16400298]
[1724249517727,0.001,60253.0,60229.0,0.3809]
[1724249517940,0.001,60253.0,60230.0,0.16400298]
[1724249517941,0.165995,60243.0,60230.0,0.16400298]
[1724249518153,0.166012,60237.0,60230.0,0.17494363]
[1724249518368,0.165998,60242.0,60232.0,0.166023]
[1724249518592,0.166003,60240.0,60230.0,0.34097163]
[1724249518812,0.166003,60240.0,60233.0,0.01090345]
[1724249519024,0.331989,60243.0,60231.0,0.166026]
[1724249519025,0.166001,60241.0,60231.0,0.166026]
[1724249519231,0.331995,60242.0,60234.0,0.01089105]
[1724249519410,0.166006,60239.0,60234.0,0.01089105]
[1724249519618,0.166008,60238.0,60231.0,0.16400298]
[1724249519835,0.166006,60239.0,60235.0,0.01087865]
[1724249520030,0.166006,60239.0,60232.0,0.001]
[1724249520264,0.174999,60242.0,60232.0,0.01191585]
[1724249520470,0.009,60242.0,60233.0,0.16400298]
[1724249520674,0.009,60242.0,60234.0,0.166018]
[1724249520936,0.009,60242.0,60233.0,0.16400298]
[1724249520937,0.166009,60238.0,60233.0,0.01090345]
[1724249521149,0.011,60243.0,60234.0,0.01089105]
[1724249521150,1.082848,60235.0,60234.0,0.01089105]
[1724249521364,1.41488,60235.0,60234.0,0.01089105]
[1724249521579,1.41488,60235.0,60234.0,0.001]
[1724249521786,0.498057,60234.0,60233.0,0.001]
[1724249521992,0.5848,60235.0,60233.0,0.001]
[1724249522240,0.166014,60236.0,60233.0,0.001]
[1724249522241,0.008,60238.0,60233.0,0.001]
[1724249522452,0.1825,60241.0,60234.0,0.16500298]
[1724249522693,0.011,60235.0,60234.0,0.33102198]
[1724249522908,0.021,60235.0,60234.0,0.17688941]
[1724249523121,0.021,60235.0,60234.0,0.34290841]
[1724249523327,0.021,60235.0,60234.0,0.17688941]
[1724249523737,0.011,60235.0,60234.0,0.01188643]
[1724249523956,0.011,60235.0,60227.0,0.332071]
[1724249523957,0.166007,60239.0,60229.0,0.166031]
[1724249524168,0.166007,60239.0,60227.0,0.332071]
[1724249524169,0.011,60235.0,60233.0,0.001]
[1724249524556,0.011,60235.0,60234.0,0.01088643]
[1724249524801,0.331983,60244.0,60234.0,0.01088643]
[1724249525016,0.006,60235.0,60234.0,0.01188643]
[1724249525226,0.006,60235.0,60234.0,0.001]
[1724249525417,0.006,60235.0,60234.0,0.01188643]
[1724249525623,0.006,60235.0,60234.0,0.001]
[1724249525829,0.002,60235.0,60234.0,0.01088643]
[1724249526058,0.002,60235.0,60230.0,0.16400298]
[1724249526249,0.002,60235.0,60234.0,0.01088643]
[1724249526465,0.002,60235.0,60234.0,0.34090841]
[1724249526674,0.002,60235.0,60234.0,0.16400298]
[1724249526923,0.002,60235.0,60234.0,0.17488941]
[1724249527174,0.002,60235.0,60221.0,0.49816]
[1724249527175,1.56938298,60235.0,60221.0,0.49816]
[1724249527385,1.56938298,60235.0,60200.0,0.3]
[1724249527386,1.420105,60226.0,60200.0,0.3]
[1724249527571,2.66156313,60226.0,60200.0,0.3]
[1724249527777,2.73896003,60226.0,60200.0,0.3]
[1724249527978,2.8133662,60226.0,60200.0,0.466111]
[1724249528185,2.8133662,60226.0,60225.0,0.0008064]
[1724249528186,2.81316647,60226.0,60225.0,0.0008064]
[1724249528387,3.0019484,60226.0,60225.0,0.0008064]
[1724249528719,2.42526144,60226.0,60225.0,0.0018064]
[1724249528872,2.42526144,60226.0,60225.0,0.0008064]
[1724249528873,1.08682327,60226.0,60225.0,0.0008064]
[1724249529098,0.754941,60226.0,60225.0,0.0008064]
[1724249529318,0.754941,60226.0,60225.0,0.0018064]
[1724249529319,1.101023,60226.0,60225.0,0.0018064]
[1724249529538,1.101023,60226.0,60200.0,0.3]
[1724249529539,1.42245,60201.0,60200.0,0.3]
[1724249529754,2.58959298,60201.0,60200.0,0.3]
[1724249529965,2.61659298,60201.0,60200.0,0.3]
[1724249530597,3.01659298,60201.0,60200.0,0.1]
[1724249531017,0.171132,60193.0,60182.0,0.009042]
[1724249531227,2.29572698,60193.0,60182.0,0.009042]
[1724249531438,3.07484094,60193.0,60182.0,0.009042]
[1724249531650,3.02799098,60193.0,60182.0,0.009042]
[1724249531863,3.07484094,60193.0,60182.0,0.009042]
[1724249532068,1.95302698,60193.0,60182.0,0.009042]
[1724249532273,0.6171,60193.0,60182.0,0.009042]
[1724249532498,0.4208,60193.0,60182.0,0.009042]
[1724249532691,0.4208,60193.0,60183.0,0.166158]
[1724249532692,0.4068,60193.0,60183.0,0.166158]
[1724249532885,0.1989,60200.0,60188.0,0.166146]
[1724249533099,0.014,60193.0,60182.0,0.341361]
[1724249533322,0.332264,60193.0,60182.0,0.009042]
[1724249533525,0.498396,60193.0,60182.0,0.009042]
[1724249535263,0.16400298,60216.0,60198.0,0.332235]
[1724249535475,0.16400298,60216.0,60195.0,0.16400298]
[1724249535691,0.166093,60208.0,60193.0,0.6017]
[1724249535895,0.3377,60200.0,60192.0,0.0009042]
[1724249536103,0.83066,60193.0,60192.0,0.0009042]
[1724249536364,0.66239898,60193.0,60192.0,0.0009042]
[1724249536566,0.99666298,60193.0,60192.0,0.0009042]
[1724249536778,1.92452698,60193.0,60192.0,0.0009042]
[1724249536983,2.21150576,60193.0,60192.0,0.0009042]
[1724249537392,2.21350576,60193.0,60192.0,0.0009042]
[1724249537607,2.25154297,60193.0,60192.0,0.0009042]
[1724249537826,2.21350576,60193.0,60192.0,0.0009042]
[1724249538456,2.58380697,60193.0,60192.0,0.0009042]
[1724249538870,1.500215,60192.0,60191.0,0.0002]
[1724249539077,2.80829676,60192.0,60191.0,0.0002]
[1724249539292,2.31204798,60192.0,60191.0,0.0002]
[1724249539496,2.35294256,60192.0,60191.0,0.0002]
[1724249539909,1.55743,60172.0,60171.0,0.0002]
[1724249540119,1.55743,60172.0,60156.0,0.0009053]
[1724249540120,1.818832,60166.0,60156.0,0.0009053]
[1724249540343,0.171209,60165.0,60156.0,0.0009053]
[1724249540554,1.87796356,60165.0,60156.0,0.0009053]
[1724249540762,0.836075,60163.0,60156.0,0.0009053]
[1724249540974,0.002,60145.0,60131.0,0.009242]
[1724249541309,1.78260498,60132.0,60131.0,0.009242]
[1724249541489,2.11720598,60132.0,60131.0,0.009242]
[1724249541691,2.26317287,60132.0,60131.0,0.009242]
[1724249541943,1.14900398,60132.0,60131.0,0.009242]
[1724249542163,1.48660498,60132.0,60131.0,0.009242]
[1724249542388,1.98318476,60132.0,60131.0,0.009242]
[1724249542592,1.81520598,60132.0,60131.0,0.009242]
[1724249542798,0.498927,60129.0,60128.0,0.0001484]
[1724249543007,0.1,60131.0,60128.0,0.0001484]
[1724249543228,0.3187,60132.0,60128.0,0.0001484]
[1724249543229,0.1,60132.0,60128.0,0.0001484]
[1724249543436,0.498927,60129.0,60128.0,0.0001484]
[1724249543656,0.166309,60129.0,60128.0,0.0001484]
[1724249543869,0.5863,60140.0,60128.0,0.0001484]
[1724249543870,0.166284,60138.0,60128.0,0.0001484]
[1724249544085,0.014,60129.0,60128.0,0.0001484]
[1724249544524,0.66744298,60146.0,60128.0,0.0001484]
[1724249544525,0.41,60156.0,60147.0,0.166259]
[1724249544741,0.001,60168.0,60147.0,0.166259]
[1724249544742,0.3876,60163.0,60147.0,0.16400298]
[1724249544973,0.49229154,60160.0,60148.0,0.35842782]
[1724249545203,0.3876,60172.0,60148.0,0.1911]
[1724249545204,0.332422,60165.0,60148.0,0.1911]
[1724249545417,0.16400298,60160.0,60148.0,0.1911]
[1724249545650,0.33021498,60164.0,60152.0,0.166245]
[1724249545858,0.33021498,60164.0,60148.0,0.1911]
[1724249545859,0.3876,60172.0,60153.0,0.16400298]
[1724249546080,0.004,60189.0,60153.0,0.16400298]
[1724249546081,0.3818,60182.0,60154.0,0.4206]
[1724249546309,0.014,60160.0,60155.0,0.16400298]
[1724249546575,0.014,60160.0,60154.0,0.166239]
[1724249546785,0.166295,60134.0,60133.0,0.3775]
[1724249546995,0.166295,60134.0,60111.0,0.0002]
[1724249546996,0.003,60144.0,60126.0,0.4043]
[1724249547204,0.001,60141.0,60126.0,0.4043]
[1724249547419,0.3802,60147.0,60126.0,0.4043]
[1724249547420,0.166292,60135.0,60126.0,0.4043]
[1724249547630,0.166309,60129.0,60122.0,0.197]
[1724249547845,0.521927,60129.0,60122.0,0.197]
[1724249548053,0.189309,60129.0,60122.0,0.197]
[1724249548264,0.189309,60129.0,60119.0,0.0009064]
[1724249548469,0.189309,60129.0,60119.0,0.1672414]
[1724249548470,0.023,60129.0,60119.0,0.1672414]
[1724249548677,0.166299,60133.0,60122.0,0.166327]
[1724249548888,0.166307,60130.0,60119.0,0.1672404]
[1724249549104,0.355604,60132.0,60119.0,0.0009064]
[1724249549105,0.498927,60129.0,60119.0,0.0009064]
[1724249549318,0.521927,60129.0,60119.0,0.0009064]
[1724249549736,0.189309,60129.0,60119.0,0.0009064]
[1724249549955,0.003,60135.0,60128.0,0.0011484]
[1724249550643,0.43257,60138.0,60128.0,0.0011484]
[1724249550882,0.166288,60137.0,60128.0,0.0001484]
[1724249551105,0.013,60130.0,60128.0,0.0011484]
[1724249551317,0.014,60129.0,60128.0,0.0021484]
[1724249551532,0.014,60129.0,60128.0,0.1674594]
[1724249551801,0.014,60129.0,60128.0,1.03398538]
[1724249552016,0.004,60138.0,60128.0,0.72165138]
[1724249552222,0.004,60138.0,60129.0,0.16400298]
[1724249552431,0.3707,60154.0,60129.0,0.16400298]
[1724249552432,0.166268,60144.0,60129.0,0.16400298]
[1724249552648,0.16627,60143.0,60133.0,0.166295]
[1724249552860,0.1962,60157.0,60128.0,0.5556484]
[1724249552861,0.49229154,60167.0,60137.0,0.3768]
[1724249553117,0.49229154,60151.0,60150.0,0.709302]
[1724249553327,0.61074039,60167.0,60156.0,0.332466]
[1724249553328,0.49229154,60167.0,60156.0,0.332466]
[1724249553547,0.49229154,60167.0,60157.0,0.16400298]
[1724249553762,0.49229154,60167.0,60160.0,0.166221]
[1724249553983,0.166195,60171.0,60161.0,0.16400298]
[1724249554191,0.166195,60171.0,60150.0,0.3768]
[1724249554192,0.3795,60169.0,60150.0,0.3768]
[1724249554411,0.014,60167.0,60150.0,0.3768]
[1724249556166,0.99554798,60129.0,60128.0,0.0001484]
[1724249556378,0.023,60129.0,60128.0,0.0001484]
[1724249556599,0.001,60140.0,60128.0,0.5390484]
[1724249556816,0.166306,60130.0,60128.0,0.5390484]
[1724249557051,0.16400298,60139.0,60128.0,0.0001484]
[1724249557052,0.189309,60129.0,60128.0,0.0001484]
[1724249557267,0.023,60129.0,60128.0,0.0011484]
[1724249557472,0.332585,60135.0,60128.0,0.0011484]
[1724249557473,0.166304,60131.0,60128.0,0.0001484]
[1724249557678,0.023,60130.0,60128.0,0.0001484]
[1724249557892,0.189306,60130.0,60128.0,0.0011484]
[1724249558099,0.332583,60136.0,60128.0,0.0011484]
[1724249558100,0.16629,60136.0,60128.0,0.0011484]
[1724249558342,0.166288,60137.0,60128.0,0.0011484]
[1724249558560,0.101,60148.0,60128.0,0.0011484]
[1724249558561,0.166284,60139.0,60128.0,0.0011484]
[1724249558775,0.012,60131.0,60128.0,0.0021484]
[1724249558979,0.012,60131.0,60130.0,0.498918]
[1724249559193,0.1,60148.0,60128.0,0.0001484]
[1724249559194,0.001,60147.0,60128.0,0.0001484]
[1724249559404,0.3799,60133.0,60128.0,0.0001484]
[1724249559676,0.014,60129.0,60128.0,0.0021484]
[1724249559890,0.01,60137.0,60132.0,0.166299]
[1724249560100,0.01,60137.0,60128.0,0.0011484]
[1724249560308,0.01,60137.0,60132.0,0.1663]
[1724249563961,0.16400298,60127.0,60111.0,0.0002]
[1724249564174,0.166333,60121.0,60115.0,0.003]
[1724249564386,0.166329,60122.0,60111.0,0.0002]
[1724249564586,0.023,60121.0,60114.0,0.007]
[1724249564843,0.023,60121.0,60114.0,0.008]
[1724249565056,0.003,60128.0,60114.0,0.001]
[1724249565057,0.16400298,60120.0,60114.0,0.001]
[1724249565264,0.831737,60115.0,60114.0,0.001]
[1724249565473,0.334665,60121.0,60114.0,0.001]
[1724249565685,0.166338,60119.0,60114.0,0.001]
[1724249565936,0.16400298,60125.0,60114.0,0.001]
[1724249565937,0.332651,60123.0,60114.0,0.001]
[1724249566151,0.003,60120.0,60114.0,0.001]
[1724249566359,0.33567,60120.0,60114.0,0.001]
[1724249566572,0.166347,60115.0,60114.0,0.001]
[1724249566976,0.499042,60115.0,60114.0,0.001]
[1724249567424,0.499042,60115.0,60111.0,0.0002]
[1724249567425,1.55659298,60115.0,60111.0,0.0002]
[1724249567629,1.20328,60112.0,60111.0,0.0002]
[1724249567836,1.81899498,60112.0,60111.0,0.0002]
[1724249568037,1.82299498,60112.0,60111.0,0.0002]
[1724249568245,2.15570698,60112.0,60111.0,0.0002]
[1724249568873,2.15570698,60112.0,60111.0,0.0012]
[1724249569056,2.15570698,60112.0,60104.0,0.009042]
[1724249569057,2.82183,60105.0,60104.0,0.009042]
[1724249569287,3.10883298,60105.0,60104.0,0.009042]
[1724249569499,2.77608198,60105.0,60104.0,0.009042]
[1724249569707,2.04033098,60105.0,60104.0,0.009042]
[1724249570534,1.18992898,60105.0,60104.0,0.009042]
[1724249570740,0.3901,60121.0,60104.0,0.009042]
[1724249570946,0.16635,60115.0,60104.0,0.009042]
[1724249571167,0.014,60105.0,60104.0,0.009042]
[1724249571365,0.014,60105.0,60104.0,0.17542]
[1724249571576,0.014,60112.0,60105.0,0.332749]
[1724249571795,0.166343,60117.0,60105.0,0.166375]
[1724249572005,0.166352,60114.0,60104.0,0.009042]
[1724249572219,0.4243344,60120.0,60104.0,0.009042]
[1724249572220,0.166355,60113.0,60104.0,0.009042]
[1724249572688,0.332697,60115.0,60104.0,0.009042]
[1724249572897,0.014,60112.0,60104.0,0.009042]
[1724249573104,0.166369,60108.0,60104.0,0.009042]
[1724249573313,0.166368,60108.0,60104.0,0.010042]
[1724249573545,0.023,60111.0,60104.0,0.010042]
[1724249573751,0.014,60112.0,60104.0,0.010042]
[1724249573981,0.014,60112.0,60105.0,0.16400298]
[1724249574194,0.4,60134.0,60117.0,0.83171]
[1724249574195,0.49229154,60129.0,60117.0,0.83171]
[1724249574407,0.49229154,60129.0,60117.0,0.99571298]
[1724249574610,0.49229154,60129.0,60117.0,1.32839698]
[1724249574833,0.00078342,60118.0,60117.0,0.99571298]
[1724249575265,1e-08,60118.0,60117.0,1.19061298]
[1724249575479,1e-08,60118.0,60117.0,1.55811298]
[1724249575480,0.01400001,60118.0,60117.0,1.55811298]
[1724249575690,0.01400001,60118.0,60117.0,1.22542898]
[1724249575909,0.01400001,60118.0,60117.0,1.22442898]
[1724249575910,1e-08,60118.0,60117.0,1.22442898]
[1724249576139,1e-08,60118.0,60117.0,1.55711298]
[1724249576347,0.00100001,60118.0,60117.0,2.23448098]
[1724249576555,0.00100001,60118.0,60117.0,1.89879698]
[1724249576764,0.00200001,60118.0,60117.0,1.91379698]
[1724249576973,0.00200001,60118.0,60117.0,1.58011298]
[1724249577181,0.00100001,60118.0,60117.0,1.89979698]
[1724249577411,0.00200001,60118.0,60117.0,1.91379698]
[1724249578043,0.00200001,60118.0,60117.0,0.023]
[1724249578256,0.00200001,60118.0,60117.0,0.014]
[1724249578257,0.00100001,60118.0,60117.0,0.014]
[1724249582128,2.99617876,60106.0,60105.0,0.55]
[1724249582511,2.83219998,60106.0,60105.0,0.55]
[1724249583219,2.83219998,60106.0,60105.0,0.552]
[1724249583220,2.51645498,60106.0,60105.0,0.552]
[1724249583425,2.50945498,60106.0,60105.0,0.551]
[1724249583629,2.49945498,60106.0,60105.0,0.55]
[1724249583853,2.50645498,60106.0,60105.0,0.551]
[1724249584062,2.67743376,60106.0,60105.0,0.551]
[1724249584477,2.51345498,60106.0,60105.0,0.552]
[1724249584694,2.51145498,60106.0,60105.0,0.552]
[1724249584880,2.51345498,60106.0,60105.0,0.5529075]
[1724249585158,2.67743376,60106.0,60105.0,0.5529075]
[1724249585377,2.49545498,60106.0,60105.0,0.5519075]
[1724249585581,1.82400998,60106.0,60105.0,0.5519075]
[1724249585787,1.83800998,60106.0,60105.0,0.5519075]
[1724249586202,2.01198876,60106.0,60105.0,0.5529075]
[1724249586435,2.00498876,60106.0,60105.0,0.5519075]
[1724249586639,1.99098876,60106.0,60105.0,0.5509075]
[1724249586853,1.99098876,60106.0,60105.0,0.5519075]
[1724249586854,1.83100998,60106.0,60105.0,0.5519075]